Cogmind - Beta 12 X1 @@@ ROGUE MODE // 2022.08.04 @ 16:27:03 Player: Terminus Result: Escaped! Performance ------------- Evolutions (9) 4500 Regions Visited (30) 6000 Robots Destroyed (545) 2725 Value Destroyed (29505) 29505 Prototype IDs (225) 4500 Alien Tech Used (5) 1000 Bonus (26724) 26724 TOTAL SCORE: 74954 Bonus ------- Triggered High Security 1500 High Alert Combat Kills 14606 Follower Combat Kills 2285 Entered Garrisons 600 Used RIF Installer 2500 Network Hubs Disabled 200 Met Data Miner 300 Used Data Conduit 3000 Met Zhirov 300 Met R17 at Cetus 500 Scanned by Researcher 500 Pursued by Intercept 1000 Win 3000 Friendly Fire -3567 Cogmind --------- Core Integrity 1270/1600 Matter 80/300 Energy 599/600 System Corruption 0% Temperature Cool (0) Movement Core (50) Location To Epsilon Eridani Parts ------- > --- POWER (4) -------- (None) > --- PROPULSION (6) --- High-density Centrium Heavy Treads High-density Centrium Heavy Treads High-density Centrium Heavy Treads > --- UTILITY (11) ----- Advanced Energy Well Experimental Signal Interpreter System Mapper Relay Coupler [Proto] (9) Relay Coupler [Proto] (9) > --- WEAPON (4) ------- (None) > --- INVENTORY (5) ---- Biometal Heavy Treads Relay Coupler [Proto] (9) Subatomic Replicator Advanced Remote Datajack Peak State ------------ > --- POWER ------------ Light Quantum Reactor Vortex Chain Reactor > --- PROPULSION ------- High-density Centrium Heavy Treads High-density Centrium Heavy Treads High-density Centrium Heavy Treads > --- UTILITY ---------- Experimental Heat Sink Huge Storage Unit Long-range Sensor Array Experimental Signal Interpreter Experimental Targeting Computer Experimental Targeting Computer Advanced Weapon Cycler Centrium Heavy Armor Plating Advanced Force Field System Mapper > --- WEAPON ----------- Helical Railgun Core Stripper > --- INVENTORY -------- Vortex Chain Reactor High-density Centrium Heavy Treads Experimental Heat Sink Advanced Energy Well Medium Regenerative Plating Experimental EM Disruption Field Experimental Force Field Relay Coupler [Proto] Relay Coupler [Proto] Relay Coupler [Proto] Relay Coupler [Proto] High-powered Tractor Beam Integrated Reactor Integrated Mediator Core Membrane Subatomic Replicator Core Physics Calibrator Improved KE Penetrator Helical Railgun Helical Railgun Hypervelocity Multirail Scatter Rocket Array Advanced Remote Datajack [Rating: 228] Favorites ----------- Power Particle Reactor Engine Deuterium Engine Power Core Light Nuclear Core Reactor Particle Reactor Propulsion Light Treads Treads Light Treads Wheel Compact Wheel Utility Huge Storage Unit Device Advanced Weapon Cycler Storage Huge Storage Unit Processor Advanced Targeting Computer Hackware Hacking Suite Protection Medium Regenerative Plating Weapon Autogun Energy Gun Heavy Laser Ballistic Gun Autogun Ballistic Cannon Mini Assault Cannon Launcher Scatter Rocket Array Special Weapon Remote Datajack Impact Weapon Core Stripper Slashing Weapon Katana Build | -11 -10 -10 -9 -9 -9 -9 -7 -7 -7 -7 -7 -7 -6 -6 -6 -5 -5 -5 -5 -5 -4 -4 -4 -4 -3 -3 -2 -2 -2 -1 ------- Run | Scr Mat Min Mat Sto Gar Rec Fac Was Fac Low Low Dat Pro Fac Gar Fac Ext Cet Arc Hub Fac Was Fac Gar Res Tes Res Qua Sec Acc Slots Evolved 18 | . . . 2 . . . 4 . . . . . . 2 . 2 . . . . 2 . . . 2 . 2 . . 2 Power 3 | . . . . . . . . . . . . . . . . . . . . . 1 . . . 1 . . . . 1 Propulsion 4 | . . . . . . . 2 . . . . . . . . 2 . . . . . . . . . . . . . . Utility 9 | . . . 1 . . . 2 . . . . . . 2 . . . . . . 1 . . . 1 . 2 . . . Weapon 2 | . . . 1 . . . . . . . . . . . . . . . . . . . . . . . . . . 1 Parts Attached 387 | 6 6 2 24 19 15 1 14 6 7 1 3 10 18 13 21 5 5 13 4 5 24 5 . 15 27 23 26 35 29 5 Power 36 | 1 2 1 . 2 1 . 2 1 . . . . 1 1 1 . 1 1 . . 3 1 . . 7 . 5 3 2 . Engine 9 | 1 2 1 . 2 1 . 1 . . . . . . 1 . . . . . . . . . . . . . . . . Core 2 | . . . . . . . 1 . . . . . . . . . . . . . 1 . . . . . . . . . Reactor 25 | . . . . . . . . 1 . . . . 1 . 1 . 1 1 . . 2 1 . . 7 . 5 3 2 . Propulsion 59 | 2 . . 8 5 4 . 4 2 . . . . 4 2 10 1 . 2 . . . 2 . . 2 2 2 4 2 1 Treads 58 | 2 . . 8 5 4 . 4 2 . . . . 4 1 10 1 . 2 . . . 2 . . 2 2 2 4 2 1 Leg . | . . . . . . . . . . . . . . . . . . . . . . . . . . . . . . . Wheel 1 | . . . . . . . . . . . . . . 1 . . . . . . . . . . . . . . . . Hover . | . . . . . . . . . . . . . . . . . . . . . . . . . . . . . . . Flight . | . . . . . . . . . . . . . . . . . . . . . . . . . . . . . . . Utility 168 | 1 2 1 6 1 2 . 4 2 4 . . 1 4 9 3 2 4 5 2 4 11 2 . 12 12 15 13 23 19 4 Device 101 | . 1 . 3 . 1 . . 1 1 . . 1 1 5 1 1 . 1 1 2 10 2 . 9 8 11 10 15 15 1 Storage 5 | 1 1 . . . . . 1 . . . . . . . . . . . . . . . . . . . 1 . 1 . Processor 7 | . . . . . . . . . . . . . 1 . . . . . . 1 . . . 1 . 1 2 1 . . Hackware 8 | . . . . . . . 2 1 . . . . . . . . . 1 . . . . . . . . . 1 . 3 Protection 47 | . . 1 3 1 1 . 1 . 3 . . . 2 4 2 1 4 3 1 1 1 . . 2 4 3 . 6 3 . Artifact . | . . . . . . . . . . . . . . . . . . . . . . . . . . . . . . . Weapon 124 | 2 2 . 10 11 8 1 4 1 3 1 3 9 9 1 7 2 . 5 2 1 10 . . 3 6 6 6 5 6 . Energy Gun 1 | . . . . . . . . . . . . . 1 . . . . . . . . . . . . . . . . . Energy Cannon . | . . . . . . . . . . . . . . . . . . . . . . . . . . . . . . . Ballistic Gun 83 | 2 2 . 9 6 6 1 2 . 3 1 . 2 3 . 4 2 . 4 1 1 7 . . 2 5 5 6 4 5 . Ballistic Cannon 17 | . . . . 3 1 . 1 . . . 3 3 2 1 3 . . . . . . . . . . . . . . . Launcher 10 | . . . 1 1 . . . . . . . 1 3 . . . . . . . 3 . . . 1 . . . . . Special Weapon 7 | . . . . . . . 1 1 . . . 1 . . . . . 1 1 . . . . 1 . 1 . . . . Impact Weapon 2 | . . . . . . . . . . . . . . . . . . . . . . . . . . . . 1 1 . Slashing Weapon 4 | . . . . 1 1 . . . . . . 2 . . . . . . . . . . . . . . . . . . Piercing Weapon . | . . . . . . . . . . . . . . . . . . . . . . . . . . . . . . . Special Melee Weapon . | . . . . . . . . . . . . . . . . . . . . . . . . . . . . . . . Unidentified Prototypes 13 | . . . . 3 . . 1 . . . . . . . . 1 . 2 . . . . . 1 1 2 . 1 1 . Corrupted Parts 1 | . . . . . . . . . . . . . . . . . . 1 . . . . . . . . . . . . System Corruption 3 | . . . . . . . . . . . . . . . . . . 3 . . . . . . . . . . . . Parts Lost 58 | . . . . . 3 . 1 . . . . . 9 4 8 . 1 . . . 2 . . 3 5 5 1 1 5 10 Power 8 | . . . . . 1 . . . . . . . 1 1 . . . . . . 1 . . . 1 . . . 1 2 Propulsion 16 | . . . . . 1 . . . . . . . 3 1 6 . . . . . . . . . 1 2 1 . . 1 Utility 23 | . . . . . 1 . 1 . . . . . 3 2 1 . 1 . . . . . . 2 1 3 . 1 2 5 Weapon 11 | . . . . . . . . . . . . . 2 . 1 . . . . . 1 . . 1 2 . . . 2 2 Highest Loss Streak 8 | . . . . . 2 . 1 . . . . . 6 2 3 . 1 . . . 1 . . 1 2 3 1 1 3 8 To Critical Strikes . | . . . . . . . . . . . . . . . . . . . . . . . . . . . . . . . Average Slot Usage (%) 87 | . 95 100 99 99 99 100 99 89 83 84 84 75 75 86 89 82 81 82 82 82 83 84 84 83 84 79 80 84 77 45 Engine 3 | . 14 14 11 11 10 11 3 . . . . . . . 4 . . . . . . . . . . . . . . . Reactor 5 | . . . . . . . . 3 7 7 7 7 6 5 1 5 5 5 5 5 8 10 10 10 13 14 13 12 8 2 Treads 17 | . 28 28 22 22 22 22 30 20 15 15 15 15 17 11 15 17 17 17 17 17 15 15 15 15 14 14 10 13 13 11 Device 11 | . 9 . 11 11 11 11 7 7 7 7 7 10 8 15 10 7 11 11 13 9 14 15 15 11 17 16 17 13 15 4 Storage 7 | . 14 14 11 11 11 11 7 7 7 7 7 7 7 6 6 5 5 5 5 5 5 5 5 5 4 4 4 4 4 6 Processor 5 | . . . . . . . . . . . . . 4 6 6 5 5 5 5 11 10 10 10 10 9 9 17 17 13 7 Hackware 4 | . . . . . . . 14 22 15 15 15 15 8 6 6 5 5 5 5 5 5 5 5 5 4 1 . 3 4 7 Protection 8 | . . 13 10 11 11 11 6 . 7 7 7 3 4 9 15 14 10 11 8 6 5 5 5 8 5 4 4 5 4 1 Ballistic Gun 17 | . 28 28 32 27 26 33 22 15 22 23 3 1 3 . 13 13 17 15 13 17 14 15 15 15 13 13 12 12 12 4 Ballistic Cannon 2 | . . . . 2 5 . . . . . 19 10 9 17 6 3 . . . . . . . . . . . . . . Naked Turns . | . . . . . . . . . . . . . . . . . . . . . . . . . . . . . . . Heaviest Build 198 | 12 32 38 42 45 47 47 107 106 113 113 121 113 109 127 132 133 133 136 136 135 168 159 159 159 181 198 196 193 194 192 Greatest Support 270 | 40 40 40 40 40 40 40 96 140 140 140 140 140 140 121 130 200 200 220 220 220 220 220 220 220 220 240 240 270 270 270 Greatest Overweight (x) 7 | 3 . . 1 1 1 1 1 . . . . . 1 7 7 . . . . . . . . . . . 1 . . . Average Overweight (x) . | . . . 1 . . 1 . . . . . . . 5 2 . . . . . . . . . . . . . . . Largest Inventory Capacity 25 | 8 15 15 15 15 15 15 25 25 25 25 25 25 25 25 25 25 25 25 25 25 25 25 25 25 25 25 25 25 25 25 Average Capacity 22 | 7 12 15 15 15 15 15 24 25 25 25 25 25 25 25 25 25 25 25 25 25 25 25 25 25 25 25 25 25 25 15 Most Carried 25 | 2 15 15 15 15 15 15 23 24 25 24 25 25 22 21 25 25 25 25 25 25 25 25 24 25 25 25 25 25 25 16 Average Carried 20 | 1 8 15 14 14 14 15 15 22 22 24 24 23 16 17 24 24 24 24 25 24 23 24 24 24 24 24 23 23 22 10 Final Capacity 25 | 8 15 15 15 15 15 15 25 25 25 25 25 25 25 25 25 25 25 25 25 25 25 25 25 25 25 25 25 25 25 5 Final Carried 25 | 2 15 15 15 15 15 15 23 22 24 24 23 22 14 20 25 25 25 25 25 25 25 24 24 25 24 23 25 25 16 5 Class Distribution -------------------- 21% | Tank 21% | Scavenger-Tank 15% | Bothacker-Gunner 11% | Mutant 6% | Scavenger-Mutant 5% | Scavenger-Gunner 5% | Scavenger-Skirmisher 3% | Bothacker-Mutant Dominant Class ---------------- Mutant | -10/Materials Mutant | -10/Mines Tank | -9/Materials Scavenger-Tank | -9/Storage Tank | -9/Garrison Tank | -9/Recycling Scavenger-Tank | -7/Factory Scavenger-Mutant | -7/Waste Scavenger-Tank | -7/Factory Scavenger-Tank | -7/Lower Caves Scavenger-Tank | -7/Lower Caves Scavenger-Mutant | -7/Data Miner Mutant | -6/Proximity Caves Mutant | -6/Factory Scavenger-Tank | -6/Garrison Tank | -5/Factory Tank | -5/Extension Scavenger-Tank | -5/Cetus Scavenger-Mutant | -5/Archives Scavenger-Skirmisher | -5/Hub_04(d) Scavenger-Skirmisher | -4/Factory Scavenger-Skirmisher | -4/Waste Scavenger-Skirmisher | -4/Factory Bothacker-Gunner | -4/Garrison Bothacker-Skirmisher | -3/Research Bothacker-Tank | -3/Testing Bothacker-Gunner | -2/Research Bothacker-Gunner | -2/Quarantine Bothacker-Gunner | -2/Section 7 Hacker-Mutant | -1/Access Resources | -11 -10 -10 -9 -9 -9 -9 -7 -7 -7 -7 -7 -7 -6 -6 -6 -5 -5 -5 -5 -5 -4 -4 -4 -4 -3 -3 -2 -2 -2 -1 ----------- Run | Scr Mat Min Mat Sto Gar Rec Fac Was Fac Low Low Dat Pro Fac Gar Fac Ext Cet Arc Hub Fac Was Fac Gar Res Tes Res Qua Sec Acc Matter Collected 22219 | 221 458 128 1023 1031 755 34 354 897 177 239 127 290 451 1176 1675 . 752 666 . 640 1300 409 . 1006 2792 1096 1738 1321 1463 . Remotely 6837 | . . . . . . . . . . . . 90 105 1134 1025 . . . . . 458 . . 414 1546 . 473 876 716 . Salvage Created 31477 | . 495 72 1220 1034 800 16 318 572 166 284 23 98 614 981 1034 . 623 932 40 713 2364 525 . 1595 4481 2791 3933 3401 2352 . Parts 1311 | . 47 7 93 55 61 3 11 11 5 8 2 . 17 36 45 . 32 56 4 38 93 4 . 81 154 114 137 85 112 . Haulers Intercepted 15 | . 2 . 5 3 . . . . 1 . . . . . . . . . . . 1 . . . 1 1 1 . . . Recyclers Shooed 20 | . . . 1 3 . . 1 . . . . . . 3 . . . . . . 2 . . . 2 . 4 4 . . Parts Field Recycled . | . . . . . . . . . . . . . . . . . . . . . . . . . . . . . . . Retrieved Matter . | . . . . . . . . . . . . . . . . . . . . . . . . . . . . . . . Parts Self-Destructed 28 | . . . . . . . . . . 9 2 . 17 . . . . . . . . . . . . . . . . . Prevented . | . . . . . . . . . . . . . . . . . . . . . . . . . . . . . . . Kills | -11 -10 -10 -9 -9 -9 -9 -7 -7 -7 -7 -7 -7 -6 -6 -6 -5 -5 -5 -5 -5 -4 -4 -4 -4 -3 -3 -2 -2 -2 -1 ------- Run | Scr Mat Min Mat Sto Gar Rec Fac Was Fac Low Low Dat Pro Fac Gar Fac Ext Cet Arc Hub Fac Was Fac Gar Res Tes Res Qua Sec Acc Combat Hostiles Destroyed 425 | . 11 2 20 18 23 2 8 2 . 5 1 4 17 9 21 . 8 12 . 11 37 1 . 28 65 28 42 25 25 . Melee 2 | . . . . 1 . . . . . . . . 1 . . . . . . . . . . . . . . . . . Guns 344 | . 11 2 17 13 20 2 7 2 . 5 . . 1 . 14 . 8 12 . 6 21 1 . 28 56 28 42 24 24 . Cannons 26 | . . . . 4 3 . 1 . . . 1 1 . 9 7 . . . . . . . . . . . . . . . AOE 50 | . . . 3 . . . . . . . . 2 15 . . . . . . 5 16 . . . 9 . . . . . Classes Destroyed 27 | . 6 1 2 2 . 1 2 1 . . . . . 2 1 . . . . . 2 . . . 3 2 1 1 . . Worker 13 | . . 1 1 1 . . . . . . . . . 1 . . . . . 2 1 . . . 3 . 2 1 . . Builder 24 | . 1 . 2 1 . . . . . . . . . . . . . . . 4 7 . . . 4 1 1 1 2 . Tunneler 4 | . . . . . . . . . . . . . . 1 . . . . . . . . . . 3 . . . . . Hauler 15 | . 2 . 5 3 . . . . 1 . . . . . . . . . . . 1 . . . 1 1 1 . . . Recycler 27 | . . . 2 . . . . . 1 . . . . 6 . . . . . . 3 . . . 1 3 3 6 2 . Carrier 2 | . . . . . . . . . . . . . . . . . . . . . . . . . . 1 . . 1 . Mechanic 7 | . . . . . . . . . . . . . . . . . . . . . 2 . . . 1 . 2 2 . . Operator 8 | . 1 . . 1 . . . . 1 . . . . 1 . . 2 . . 2 . . . . . . . . . . Drone 2 | . . . . . . 2 . . . . . . . . . . . . . . . . . . . . . . . . Watcher 20 | . 3 . 2 2 . . . . . . . . . 1 . . 1 2 . 2 1 . . . 2 . 1 1 2 . Swarmer 56 | . 3 . 7 . 9 . 2 . . . . . 2 . 3 . 1 . . 5 . . . 10 7 . 4 . 3 . Saboteur 7 | . . . . . . . . . . . . . . . . . . . . . 3 . . . 1 . 2 1 . . Grunt 148 | . 8 2 8 12 8 . 3 . . 3 . . 7 2 2 . 2 3 . 3 16 . . 3 36 5 11 13 1 . Brawler 22 | . . . . 2 . . . . . . . . 1 . 2 . . . . 1 4 . . . 4 3 4 1 . . Duelist 33 | . . . . 1 . . . . . . . . 5 . . . . . . 1 7 . . . 4 6 4 3 2 . Protector 6 | . . . . . . . . . . . . . . . . . . . . . . . . . 2 2 . 1 1 . Researcher 4 | . . . . . . . . . . . . . . . . . . . . . . . . . . 2 . 1 1 . Sentry 43 | . . . 5 3 6 . 1 . . 1 . . 1 1 7 . 5 . . 1 1 . . 5 2 . 2 . 2 . Demolisher 1 | . . . . . . . . . . . . . . . . . . . . . . . . . 1 . . . . . Specialist 4 | . . . . . . . . . . . . . . 2 . . . . . . . . . . . . 2 . . . Hunter 42 | . . . . . . . 1 . . 1 1 . . 2 4 . . 3 . . 2 . . 8 4 2 6 . 8 . Programmer 36 | . . . . . . . 1 . . . . . 1 2 1 . . 1 . . 4 . . 2 1 6 6 5 6 . Behemoth 1 | . . . . . . . . . . . . . . . . . . . . . . . . . . . 1 . . . Compactor 3 | . . . . . . . . 2 . . . . . . . . . . . . . 1 . . . . . . . . Cetus Guard 5 | . . . . . . . . . . . . . . . . . . 5 . . . . . . . . . . . . S7 Guard 2 | . . . . . . . . . . . . . . . . . . . . . . . . . . . . . 2 . Enhanced Grunt 4 | . . . . . . . . . . . . 4 . . . . . . . . . . . . . . . . . . Tracker 3 | . . . . . . . . . . . . . . . . . . . . . . . . . 1 2 . . . . Combat Programmer 3 | . . . . . . . . . . . . . . . . . . . . . . . . . 1 2 . . . . Striker 2 | . . . . . . . . . . . . . . . 2 . . . . . . . . . . . . . . . Fortress 1 | . . . . . . . . . . . . . . . . . . . . . . . . . . . . 1 . . Assembled 1 | . . . . . . . . . . . . . . . . . . . . . . . . . 1 . . . . . Thug 2 | . . . 1 . . . . 1 . . . . . . . . . . . . . . . . . . . . . . Butcher 1 | . . . . . 1 . . . . . . . . . . . . . . . . . . . . . . . . . Best Kill Streak 22 | . 3 2 4 4 7 1 5 1 1 3 1 2 9 4 3 . 2 4 . 9 16 1 . 6 22 7 10 10 5 . Combat Bots Only 18 | . 3 2 4 4 7 1 5 1 . 3 1 2 9 3 3 . 2 3 . 5 6 1 . 6 18 6 10 8 5 . Max Kills in Single Turn 9 | . 2 1 4 2 2 1 1 1 1 2 1 1 9 2 2 . 1 2 . 9 7 1 . 2 3 2 3 2 2 . Gunslinging 1 | . . . 1 . 1 . . . . 1 . . . . 1 . . . . . 1 . . 1 1 1 1 1 . . Exploded 9 | . . . 3 . . . . . . . . 1 9 . . . . . . 5 3 . . . 3 . . . . . Melee 1 | . . . . 1 . . . . . . . . 1 . . . . . . . . . . . . . . . . . Uniques/NPCs Destroyed 1 | . . . . . . . . . . . . . . . . . . 1 . . . . . . . . . . . . A7 (-5/Cetus) Combat | -11 -10 -10 -9 -9 -9 -9 -7 -7 -7 -7 -7 -7 -6 -6 -6 -5 -5 -5 -5 -5 -4 -4 -4 -4 -3 -3 -2 -2 -2 -1 -------- Run | Scr Mat Min Mat Sto Gar Rec Fac Was Fac Low Low Dat Pro Fac Gar Fac Ext Cet Arc Hub Fac Was Fac Gar Res Tes Res Qua Sec Acc Damage Taken 30562 | . 460 153 561 798 862 . 474 22 . 550 . 508 1850 768 2376 196 537 1288 . 552 1609 . . 1087 4141 1399 3216 841 2881 3433 Core 2140 | . 172 46 27 121 152 . 57 . . 54 . . 262 65 238 . 25 64 . . 58 . . . 227 41 149 13 39 330 Absorbed by Shields 12268 | . . . . . 41 . 3 . . . . . . . 29 . 154 52 . . 852 . . 885 3074 1223 2382 745 2092 736 Reduced by Siege Mode 2752 | . . . . . . . . . . 84 . 121 48 . 82 . . 157 . 14 188 . . 191 627 159 317 62 323 379 Regen/Repaired (Parts) 2020 | . . . 45 . . . . . 101 . . . . . . . . 7 . 8 676 . . 114 249 82 . 86 548 104 Core Remaining (%) 67 | 100 . 12 . . . 25 . . . . . . 46 . 64 . . . . 91 . . . 94 . 79 . . 86 79 Volleys Fired 1352 | . 48 7 56 65 50 3 34 77 11 17 1 21 14 43 82 . 30 81 16 28 67 5 . 75 157 82 110 48 121 3 Largest 3 | . 2 2 3 3 3 3 3 2 3 3 3 3 1 3 3 . 3 3 1 3 3 3 . 3 3 3 3 3 3 3 Hottest 144 | . 46 46 69 144 144 69 94 43 66 66 144 144 50 144 144 . 101 103 20 103 103 101 . 101 109 126 126 126 126 109 Shots Fired 3423 | . 96 14 164 195 145 9 82 140 33 46 8 39 15 122 228 . 90 171 16 82 182 17 . 212 454 166 298 129 261 9 Gun 3034 | . 96 14 162 174 125 9 70 133 33 46 . 5 11 . 136 . 90 136 . 82 175 17 . 210 449 164 298 129 261 9 Cannon 304 | . . . . 21 20 . 11 . . . 8 29 1 122 92 . . . . . . . . . . . . . . . Launcher 21 | . . . 2 . . . . . . . . 4 3 . . . . . . . 7 . . . 5 . . . . . Special 64 | . . . . . . . 1 7 . . . 1 . . . . . 35 16 . . . . 2 . 2 . . . . Kinetic 3338 | . 96 14 162 195 145 9 81 133 33 46 8 34 12 122 228 . 90 136 . 82 175 17 . 210 449 164 298 129 261 9 Thermal 51 | . . . . . . . . . . . . . . . . . . 35 16 . . . . . . . . . . . Explosive 21 | . . . 2 . . . . . . . . 4 3 . . . . . . . 7 . . . 5 . . . . . Electromagnetic . | . . . . . . . . . . . . . . . . . . . . . . . . . . . . . . . Robot Hit Streak 67 | . 8 8 9 13 19 3 10 15 4 19 22 37 11 13 13 . 14 36 18 23 36 6 . 31 45 39 67 58 54 5 Robot Miss Streak 5 | . 4 1 4 5 3 2 5 2 4 2 . 1 5 2 4 . 2 4 . 2 5 1 . 4 2 3 3 2 3 2 Penetration Max 4 | . . . . . . . . . . . . . . . 1 . 2 1 . 1 1 . . 1 2 2 2 4 2 1 Secondary Targets 71 | . . 1 1 1 6 . 1 . . 1 . . . . 4 . 3 1 . 1 5 . . 7 17 3 9 5 5 . Max Gunslinging Chain 2 | . . 1 1 1 2 . 1 . . 1 . . . . 1 . 1 1 . 1 1 . . 1 1 1 1 1 1 . Shots Hit Robots 2424 | . 68 13 103 124 85 5 49 116 18 41 3 31 19 63 148 . 72 135 16 31 131 11 . 168 330 128 218 104 188 6 Core Hits 1460 | . 33 5 47 37 32 2 18 18 6 13 2 27 77 28 49 . 26 50 5 37 176 4 . 70 244 106 132 90 125 1 Critical Kills 137 | . . . 1 . . . . . . 1 . . . . . . 4 5 . 1 5 . . 4 15 21 37 29 14 . Critical Parts Destroyed 263 | . 1 . . . 1 . . . . 1 . . . . 2 . 3 8 . 4 17 . . 15 28 37 59 52 34 1 Critical Strikes 452 | . 1 . 1 1 1 . . . . 2 . 1 4 5 5 . 7 15 . 5 22 1 . 22 46 61 112 81 58 1 Destroy 437 | . 1 . 1 . 1 . . . . 2 . . . . 2 . 7 14 . 5 22 1 . 22 46 61 112 81 58 1 Blast 10 | . . . . 1 . . . . . . . 1 . 5 3 . . . . . . . . . . . . . . . Sever 5 | . . . . . . . . . . . . . 4 . . . . 1 . . . . . . . . . . . . Melee Attacks 33 | . . . . 8 9 . . . . . . 1 13 . . . . . . . . . . . . . . 1 1 . Kinetic 2 | . . . . . . . . . . . . . . . . . . . . . . . . . . . . 1 1 . Impact . | . . . . . . . . . . . . . . . . . . . . . . . . . . . . . . . Slashing 31 | . . . . 8 9 . . . . . . 1 13 . . . . . . . . . . . . . . . . . Piercing . | . . . . . . . . . . . . . . . . . . . . . . . . . . . . . . . Sneak Attacks 4 | . . . . 3 . . . . . . . 1 . . . . . . . . . . . . . . . . . . Combat Hostiles . | . . . . . . . . . . . . . . . . . . . . . . . . . . . . . . . Follow-up Attacks . | . . . . . . . . . . . . . . . . . . . . . . . . . . . . . . . Damage Inflicted 72229 | . 997 226 1843 2270 1474 84 776 1673 258 513 55 1235 2261 1994 3670 . 2114 3444 190 2119 8383 304 . 4155 13910 3933 6349 3175 4560 264 Guns 56151 | . 965 214 1598 1772 1268 77 731 1673 255 507 . 70 147 . 2333 . 2076 3142 . 1116 4049 304 . 4155 11502 3933 6308 3175 4523 258 Cannons 4496 | . . . . 288 206 . 45 . . . 55 631 . 1934 1337 . . . . . . . . . . . . . . . Explosions 10154 | . . . 215 . . . . . . . . 466 1824 59 . . . . . 1003 4318 . . . 2269 . . . . . Melee 520 | . . . . 183 . . . . . . . 68 269 . . . . . . . . . . . . . . . . . Ramming 416 | . 32 12 30 27 . 7 . . 3 6 . . 21 1 . . 38 . . . 16 . . . 139 . 41 . 37 6 Kinetic 60647 | . 965 214 1598 2060 1474 77 776 1673 255 507 55 701 147 1934 3670 . 2076 3142 . 1116 4049 304 . 4155 11502 3933 6308 3175 4523 258 Thermal 966 | . . . . . . . . . . . . . . . . . . 302 190 . 474 . . . . . . . . . Explosive 8677 | . . . 215 . . . . . . . . 466 1824 59 . . . . . . 3844 . . . 2269 . . . . . Electromagnetic 1003 | . . . . . . . . . . . . . . . . . . . . 1003 . . . . . . . . . . Impact . | . . . . . . . . . . . . . . . . . . . . . . . . . . . . . . . Slashing 520 | . . . . 183 . . . . . . . 68 269 . . . . . . . . . . . . . . . . . Piercing . | . . . . . . . . . . . . . . . . . . . . . . . . . . . . . . . Highest Corruption 37 | . . . 1 1 1 1 . 35 37 37 37 37 37 5 7 . . 3 3 5 2 2 2 2 8 18 24 27 28 . Average Corruption 11 | . . . 1 1 1 1 . 20 36 37 37 37 37 5 6 . . 3 2 2 1 2 2 2 5 9 5 25 27 . Corruption Purged 3 | . . . . . . . . . . . . . . . . . . . 3 . . . . . . . . . . . Corruption Blocked . | . . . . . . . . . . . . . . . . . . . . . . . . . . . . . . . Effects 569 | . . . 4 14 12 2 . 29 28 27 33 23 46 4 75 . . 3 3 1 7 13 . 25 28 32 11 82 67 . Message Errors 147 | . . . 1 6 3 . . 4 6 9 16 8 16 1 18 . . . . . 2 1 . 6 5 9 1 20 15 . Matter Fused 103 | . . . 1 2 . . . 3 5 4 7 3 7 1 19 . . 1 2 . 1 1 . 2 2 12 1 19 10 . Heat Flow Errors 49 | . . . . 2 1 . . 5 2 1 . 1 9 . 6 . . . . . . 2 . 4 1 2 3 4 6 . Energy Discharges 62 | . . . 1 2 1 1 . 1 3 1 . . 4 . 11 . . . 1 1 1 3 . 2 4 4 1 13 7 . Parts Rejected 4 | . . . . . . . . . . 1 . . . 1 1 . . . . . . . . . 1 . . . . . Data Loss (minor) 75 | . . . . 2 3 1 . 3 9 3 3 2 4 1 9 . . 2 . . . 3 . 8 4 1 1 11 5 . Data Loss (major) 27 | . . . . . 1 . . 2 1 2 2 1 . . 3 . . . . . 1 1 . 2 2 2 1 3 3 . Misfires 26 | . . . . . 3 . . 2 1 . 5 2 2 . 4 . . . . . . 2 . 1 1 . . 2 1 . Alerts 10 | . . . 1 . . . . . . 1 . . 2 . 2 . . . . . . . . . . . . 3 1 . Misdirections 1 | . . . . . . . . . . . . . 1 . . . . . . . . . . . . . . . . . Weapon Failures 65 | . . . . . . . . 9 1 5 . 6 1 . 2 . . . . . 2 . . . 8 2 3 7 19 . Overload Shots . | . . . . . . . . . . . . . . . . . . . . . . . . . . . . . . . Overflow Damage 305 | . . . 10 63 14 . . . . . . 5 8 118 6 . . 2 5 27 37 . . . 4 . 6 . . . Projectiles 157 | . . . . 7 14 . . . . . . 5 . 118 6 . . 2 5 . . . . . . . . . . . Explosions 79 | . . . 10 . . . . . . . . . 1 . . . . . . 27 37 . . . 4 . . . . . Melee 69 | . . . . 56 . . . . . . . . 7 . . . . . . . . . . . . . 6 . . . Knockbacks 40 | . . . . 7 2 . 1 . . . . 2 . 18 8 . . . . . . . . . 2 . . . . . Impact 4 | . . . . 2 . . . . . . . . . . . . . . . . . . . . 2 . . . . . Kinetic 35 | . . . . 4 2 . 1 . . . . 2 . 18 8 . . . . . . . . . . . . . . . Secondary 1 | . . . . 1 . . . . . . . . . . . . . . . . . . . . . . . . . . Self-Inflicted Damage 647 | . . . 37 . . . . . . . . . 145 63 . . . . . 70 111 . . . 218 . . . . 3 Shots 19 | . . . 1 . . . . . . . . . 5 1 . . . . . 1 2 . . . 9 . . . . . Rammed 47 | . 4 3 8 5 . 1 . . 1 1 . . 4 1 . . 2 . . . 1 . . . 9 . 1 2 3 1 Targets Rammed 49 | . 4 4 8 6 . 1 . . 1 1 . . 4 1 . . 2 . . . 1 . . . 9 . 1 2 3 1 Kicked . | . . . . . . . . . . . . . . . . . . . . . . . . . . . . . . . Crushed 2 | . . 1 . 1 . . . . . . . . . . . . . . . . . . . . . . . . . . Highest Temperature 324 | . . . 17 241 172 8 44 254 139 244 . 216 236 126 264 . 38 90 . 4 12 130 . 306 244 317 324 166 242 . Average Temperature 47 | . . . 3 22 24 6 10 97 62 103 . 73 90 16 34 . 12 17 . 4 7 76 . 31 58 90 91 73 45 . Received Heat Transfer 4036 | . 249 84 186 276 246 . 171 9 . 132 . . 435 159 290 9 71 136 . 45 225 . . 121 534 12 327 68 40 211 Effects 2 | . . . . . . . . . . . . . . . . . . . . . . . . . . 2 . . . . Interference 2 | . . . . . . . . . . . . . . . . . . . . . . . . . . 2 . . . . Siege Activations 87 | . . . . . . . . . . 4 1 2 2 . 3 . 1 5 . 3 11 . . 14 11 8 5 7 9 1 Total Turns 2065 | . . . . . . . . . . 85 14 139 19 . 36 . 10 87 . 33 174 . . 160 329 159 135 373 239 73 Longest Duration 119 | . . . . . . . . . . 30 14 119 14 . 27 . 10 33 . 16 36 . . 33 58 37 53 116 97 73 Robots Corrupted . | . . . . . . . . . . . . . . . . . . . . . . . . . . . . . . . Combat Hostiles . | . . . . . . . . . . . . . . . . . . . . . . . . . . . . . . . Parts Fried 6 | . . . . . . . . 1 . . . . . . . . . . . 5 . . . . . . . . . . Impact Corruptions 3 | . . . . . . . . . . . . . 2 . . . . . . . . . . . . . 1 . . . Robots Melted . | . . . . . . . . . . . . . . . . . . . . . . . . . . . . . . . Combat Hostiles . | . . . . . . . . . . . . . . . . . . . . . . . . . . . . . . . Parts Melted 1 | . . . . . . . . . . . . . . . . . . . 1 . . . . . . . . . . . Heat Transferred 1436 | . . . . . . . . . . . . . . . . . . 494 592 . 350 . . . . . . . . . Parts Sabotaged 15 | . . . . . . . . . . . . . 3 . . . . . . . 4 . . . 2 . 3 3 . . Parts Stolen . | . . . . . . . . . . . . . . . . . . . . . . . . . . . . . . . Parts Stripped . | . . . . . . . . . . . . . . . . . . . . . . . . . . . . . . . Power Chain Reactions . | . . . . . . . . . . . . . . . . . . . . . . . . . . . . . . . Missiles Intercepted . | . . . . . . . . . . . . . . . . . . . . . . . . . . . . . . . Alert | -11 -10 -10 -9 -9 -9 -9 -7 -7 -7 -7 -7 -7 -6 -6 -6 -5 -5 -5 -5 -5 -4 -4 -4 -4 -3 -3 -2 -2 -2 -1 ------- Run | Scr Mat Min Mat Sto Gar Rec Fac Was Fac Low Low Dat Pro Fac Gar Fac Ext Cet Arc Hub Fac Was Fac Gar Res Tes Res Qua Sec Acc Peak Influence 2858 | . 200 143 342 338 857 466 1151 171 27 . . . . 356 1730 907 866 622 209 953 1591 562 253 1766 2858 1801 2219 1645 1539 894 Initial 1602 | . . 78 1 118 113 385 1095 171 . . . . . . 249 907 322 364 204 72 466 556 253 177 993 1602 1100 1248 861 871 Average 678 | . 93 95 160 153 412 385 781 137 12 . . . . 137 850 680 554 463 207 193 888 489 253 910 1570 1538 1539 1295 1197 845 Maximum Alert Level 5 | . 1 . 1 1 3 2 4 . . . . . . 1 5 3 3 2 1 3 4 2 1 5 5 5 5 5 4 3 Low Security (%) 24 | 100 84 100 55 61 31 . . 100 100 . . . . 65 . . . . . 69 . . . 7 . . . . . . Level 1 16 | . 15 . 44 38 25 56 . . . . . . . 34 11 . 23 24 100 24 . 35 100 9 . . . . . . Level 2 17 | . . . . . 15 43 34 . . . . . . . 35 84 57 75 . . 40 64 . 17 . . . . . . Level 3 16 | . . . . . 26 . 59 . . . . . . . 31 15 18 . . 5 37 . . 32 10 . . 17 30 100 Level 4 19 | . . . . . . . 5 . . . . . . . 14 . . . . . 21 . . 21 63 61 61 80 69 . Level 5 3 | . . . . . . . . . . . . . . . 7 . . . . . . . . 10 1 32 7 2 . . High Security 2 | . . . . . . . . . . . . . . . . . . . . . . . . . 25 5 31 . . . Max Security . | . . . . . . . . . . . . . . . . . . . . . . . . . . . . . . . Squads Dispatched 101 | . 2 . 2 7 . . 3 . 4 . . . 1 6 . . 2 . . 4 10 . . . 18 10 14 8 9 1 Investigation 11 | . 1 . 2 . . . 1 . 3 . . . . 1 . . . . . . 1 . . . 1 . . 1 . . Extermination 11 | . . . . . . . 2 . . . . . . 2 . . . . . . 1 . . . . 2 . 2 2 . Reinforcement 19 | . 1 . . 2 . . . . 1 . . . . 3 . . 1 . . 1 1 . . . 1 1 2 . 4 1 Assault 43 | . . . . . . . . . . . . . 1 . . . 1 . . 1 6 . . . 11 4 11 5 3 . Garrison 12 | . . . . 5 . . . . . . . . . . . . . . . 2 1 . . . 3 . 1 . . . Intercept 5 | . . . . . . . . . . . . . . . . . . . . . . . . . 2 3 . . . . Searches Triggered 2 | . . . . . . . 2 . . . . . . . . . . . . . . . . . . . . . . . Construction Impeded 5 | . . . . 1 . . . . . . . . . . . . 1 . . . 1 . . . 1 1 . . . . Haulers Reinforced . | . . . . . . . . . . . . . . . . . . . . . . . . . . . . . . . Active Scanning Responses . | . . . . . . . . . . . . . . . . . . . . . . . . . . . . . . . Cargo Convoy Interrupts . | . . . . . . . . . . . . . . . . . . . . . . . . . . . . . . . Stealth | -11 -10 -10 -9 -9 -9 -9 -7 -7 -7 -7 -7 -7 -6 -6 -6 -5 -5 -5 -5 -5 -4 -4 -4 -4 -3 -3 -2 -2 -2 -1 --------- Run | Scr Mat Min Mat Sto Gar Rec Fac Was Fac Low Low Dat Pro Fac Gar Fac Ext Cet Arc Hub Fac Was Fac Gar Res Tes Res Qua Sec Acc Distress Signals 17 | . 1 . 2 1 . . . . . . . . . . . . . 2 . 3 . . . . 5 1 . . 2 . Communications Jammed . | . . . . . . . . . . . . . . . . . . . . . . . . . . . . . . . Distress Signals . | . . . . . . . . . . . . . . . . . . . . . . . . . . . . . . . Times Spotted 684 | . 16 2 25 26 24 11 9 6 5 5 . 4 21 15 29 1 29 15 . 13 47 1 . 42 118 39 66 39 39 37 Peak Tracking Total 18 | . 3 2 4 2 5 4 5 2 2 3 . 2 10 4 4 1 6 5 . 7 6 1 . 7 18 8 12 9 8 14 Tactical Retreats 34 | . . . 1 1 . . 1 . . . . . 3 2 1 . 4 . . . . . . 7 5 2 3 2 2 . Traps | -11 -10 -10 -9 -9 -9 -9 -7 -7 -7 -7 -7 -7 -6 -6 -6 -5 -5 -5 -5 -5 -4 -4 -4 -4 -3 -3 -2 -2 -2 -1 ------- Run | Scr Mat Min Mat Sto Gar Rec Fac Was Fac Low Low Dat Pro Fac Gar Fac Ext Cet Arc Hub Fac Was Fac Gar Res Tes Res Qua Sec Acc Traps Triggered 38 | . . . 2 1 5 . 1 . 1 . . . . . 14 . 3 . . 1 1 . . 3 2 . 1 1 . 2 Indirectly . | . . . . . . . . . . . . . . . . . . . . . . . . . . . . . . . Trap Hack Attempts . | . . . . . . . . . . . . . . . . . . . . . . . . . . . . . . . Triggered . | . . . . . . . . . . . . . . . . . . . . . . . . . . . . . . . Disarmed . | . . . . . . . . . . . . . . . . . . . . . . . . . . . . . . . Reprogrammed . | . . . . . . . . . . . . . . . . . . . . . . . . . . . . . . . Reused . | . . . . . . . . . . . . . . . . . . . . . . . . . . . . . . . Traps Extracted . | . . . . . . . . . . . . . . . . . . . . . . . . . . . . . . . Installed . | . . . . . . . . . . . . . . . . . . . . . . . . . . . . . . . Triggered . | . . . . . . . . . . . . . . . . . . . . . . . . . . . . . . . Machines | -11 -10 -10 -9 -9 -9 -9 -7 -7 -7 -7 -7 -7 -6 -6 -6 -5 -5 -5 -5 -5 -4 -4 -4 -4 -3 -3 -2 -2 -2 -1 ---------- Run | Scr Mat Min Mat Sto Gar Rec Fac Was Fac Low Low Dat Pro Fac Gar Fac Ext Cet Arc Hub Fac Was Fac Gar Res Tes Res Qua Sec Acc Machines Disabled 87 | . . . 2 3 3 2 . . . . . . . 8 10 . 5 4 . 18 6 . . 4 . 8 3 3 8 . Max in Single Turn 15 | . . . 1 1 1 . . . . . . . . 2 2 . 1 1 . 15 2 . . 1 . 1 1 1 1 . Garrison Access 4 | . . . . . . . . . . . . . . . . . . . . 1 1 . . . 1 . 1 . . . Garrison Relay 6 | . . . . . 1 . . . . . . . . . 3 . . . . . . . . 2 . . . . . . Phase Generator 1 | . . . . . . . . . . . . . . . 1 . . . . . . . . . . . . . . . Network Hub 1 | . . . . . . . . . . . . . . . . . . . . 1 . . . . . . . . . . Machines Sabotaged . | . . . . . . . . . . . . . . . . . . . . . . . . . . . . . . . Garrisons Compromised . | . . . . . . . . . . . . . . . . . . . . . . . . . . . . . . . Overloaded Fab Kills . | . . . . . . . . . . . . . . . . . . . . . . . . . . . . . . . Hacking | -11 -10 -10 -9 -9 -9 -9 -7 -7 -7 -7 -7 -7 -6 -6 -6 -5 -5 -5 -5 -5 -4 -4 -4 -4 -3 -3 -2 -2 -2 -1 --------- Run | Scr Mat Min Mat Sto Gar Rec Fac Was Fac Low Low Dat Pro Fac Gar Fac Ext Cet Arc Hub Fac Was Fac Gar Res Tes Res Qua Sec Acc Machines Accessed 89 | . 7 1 9 7 1 2 6 . 3 . . 4 . 5 1 4 9 . . 3 4 . 1 2 3 5 1 8 1 2 Terminals 62 | . 5 . 7 6 1 2 5 . 1 . . . . 1 1 4 9 . . 2 1 . . 2 2 4 . 7 . 2 Fabricators 5 | . . . . . . . 1 . 1 . . . . 2 . . . . . . 1 . . . . . . . . . Repair Stations 5 | . 1 . 1 . . . . . 1 . . . . . . . . . . . 1 . . . . 1 . . . . Recycling Units 2 | . 1 . . . . . . . . . . . . . . . . . . . . . . . . . 1 . . . Scanalyzers 5 | . . . 1 . . . . . . . . . . 1 . . . . . . 1 . . . . . . 1 1 . Garrison Access 5 | . . . . 1 . . . . . . . . . 1 . . . . . 1 . . 1 . 1 . . . . . Total Hacks 262 | . 19 1 25 19 4 5 15 . 8 . . 30 . 16 2 9 17 . . 6 15 . 1 4 7 19 3 28 6 3 Successful 160 | . 12 1 17 13 1 2 9 . 4 . . 30 . 9 1 6 9 . . 5 10 . 1 2 3 8 3 7 5 2 Failed 102 | . 7 . 8 6 3 3 6 . 4 . . . . 7 1 3 8 . . 1 5 . . 2 4 11 . 21 1 1 Catastrophic 11 | . 1 . 1 . . . . . . . . . . 1 . . . . . . 1 . . . . 2 . 5 . . Database Lockouts . | . . . . . . . . . . . . . . . . . . . . . . . . . . . . . . . Manual 121 | . 14 . 16 14 . 1 9 . 2 . . . . 9 . 8 8 1 . 5 3 . . . . 8 . 21 . 2 Terminals 172 | . 16 . 19 18 4 5 13 . 2 . . . . 5 2 9 17 . . 5 2 . . 4 6 16 . 26 . 3 Fabricators 19 | . . . . . . . 2 . 3 . . . . 8 . . . . . . 6 . . . . . . . . . Repair Stations 15 | . 2 . 4 . . . . . 3 . . . . . . . . . . . 3 . . . . 3 . . . . Recycling Units 4 | . 1 . . . . . . . . . . . . . . . . . . . . . . . . . 3 . . . Scanalyzers 16 | . . . 2 . . . . . . . . . . 2 . . . . . . 4 . . . . . . 2 6 . Garrison Access 5 | . . . . 1 . . . . . . . . . 1 . . . . . 1 . . 1 . 1 . . . . . Terminal Hacks 80 | . 3 1 6 7 1 2 4 . . . . 30 . 2 1 3 7 . . 2 . . . 2 2 3 . 3 . 1 Record 11 | . . . . . . . . . . . . 11 . . . . . . . . . . . . . . . . . . Part Schematic 13 | . . . . . . 1 . . . . . 11 . . . . . . . . . . . . . 1 . . . . Robot Schematic 5 | . . . . . . . . . . . . 5 . . . . . . . . . . . . . . . . . . Robot Analysis 3 | . 2 . 1 . . . . . . . . . . . . . . . . . . . . . . . . . . . Prototype ID Bank 4 | . . . . . . 1 . . . . . 3 . . . . . . . . . . . . . . . . . . Open Door 12 | . . 1 . 2 1 . . . . . . . . . . 1 5 . . . . . . 1 . . . . . 1 Branch Access Points 3 | . . . 1 . . . 1 . . . . . . . . . . . . . . . . . 1 . . . . . Emergency Access Points 2 | . . . . . . . . . . . . . . . 1 . . . . . . . . 1 . . . . . . Terminal Index 4 | . . . 2 1 . . 1 . . . . . . . . . . . . . . . . . . . . . . . Unreport Threat 8 | . . . . 1 . . 1 . . . . . . . . 2 1 . . . . . . . . 2 . 1 . . Locate Traps 2 | . . . 1 1 . . . . . . . . . . . . . . . . . . . . . . . . . . Recall Investigation 1 | . . . . . . . . . . . . . . 1 . . . . . . . . . . . . . . . . Hauler Manifests 6 | . 1 . 1 1 . . 1 . . . . . . . . . . . . . . . . . 1 . . 1 . . Zone Layout 6 | . . . . 1 . . . . . . . . . 1 . . 1 . . 2 . . . . . . . 1 . . Fabricator Hacks 10 | . . . . . . . 2 . 2 . . . . 3 . . . . . . 3 . . . . . . . . . Network Status 3 | . . . . . . . 1 . . . . . . 1 . . . . . . 1 . . . . . . . . . Load Schematic 3 | . . . . . . . . . 1 . . . . 1 . . . . . . 1 . . . . . . . . . Build 4 | . . . . . . . 1 . 1 . . . . 1 . . . . . . 1 . . . . . . . . . Repair Station Hacks 11 | . 1 . 4 . . . . . 2 . . . . . . . . . . . 2 . . . . 2 . . . . Scan Component 6 | . 1 . 2 . . . . . 1 . . . . . . . . . . . 1 . . . . 1 . . . . Repair 5 | . . . 2 . . . . . 1 . . . . . . . . . . . 1 . . . . 1 . . . . Recycling Unit Hacks 3 | . . . . . . . . . . . . . . . . . . . . . . . . . . . 3 . . . Process 1 | . . . . . . . . . . . . . . . . . . . . . . . . . . . 1 . . . Retrieve Matter 2 | . . . . . . . . . . . . . . . . . . . . . . . . . . . 2 . . . Scanalyzer 11 | . . . 2 . . . . . . . . . . 1 . . . . . . 2 . . . . . . 1 5 . Insert Component 9 | . . . 1 . . . . . . . . . . 1 . . . . . . 1 . . . . . . 1 5 . Analyze 2 | . . . 1 . . . . . . . . . . . . . . . . . 1 . . . . . . . . . Garrison Access Hacks 5 | . . . . 1 . . . . . . . . . 1 . . . . . 1 . . 1 . 1 . . . . . Unlock Access 4 | . . . . 1 . . . . . . . . . 1 . . . . . 1 . . 1 . . . . . . . Seal Access 1 | . . . . . . . . . . . . . . . . . . . . . . . . . 1 . . . . . Unauthorized Hacks 40 | . 8 . 5 5 . . 3 . . . . . . 2 . 3 2 . . 2 3 . . . . 3 . 3 . 1 Terminals 36 | . 7 . 5 5 . . 3 . . . . . . 1 . 3 2 . . 2 1 . . . . 3 . 3 . 1 Assimilate 1 | . . . . . . . . . . . . . . . . . . . . . . . . . . 1 . . . . Botnet 32 | . 5 . 5 4 . . 3 . . . . . . 1 . 3 2 . . 2 1 . . . . 2 . 3 . 1 Disrupt 2 | . 1 . . 1 . . . . . . . . . . . . . . . . . . . . . . . . . . Operators 1 | . 1 . . . . . . . . . . . . . . . . . . . . . . . . . . . . . Fabricators 3 | . . . . . . . . . . . . . . 1 . . . . . . 2 . . . . . . . . . Prioritize 1 | . . . . . . . . . . . . . . . . . . . . . 1 . . . . . . . . . Haulers 2 | . . . . . . . . . . . . . . 1 . . . . . . 1 . . . . . . . . . Repair Stations . | . . . . . . . . . . . . . . . . . . . . . . . . . . . . . . . Recycling Units 1 | . 1 . . . . . . . . . . . . . . . . . . . . . . . . . . . . . Tunnel 1 | . 1 . . . . . . . . . . . . . . . . . . . . . . . . . . . . . Scanalyzers . | . . . . . . . . . . . . . . . . . . . . . . . . . . . . . . . Garrison Access . | . . . . . . . . . . . . . . . . . . . . . . . . . . . . . . . Data Cores Recovered 1 | . . . . . . . . . . . . . . . . . 1 . . . . . . . . . . . . . Used . | . . . . . . . . . . . . . . . . . . . . . . . . . . . . . . . Hacking Detections 69 | . 6 . 9 6 1 2 6 . 3 . . . . 4 1 3 6 . . 1 3 . . 1 2 5 . 8 1 1 Full Trace Events 12 | . 1 . 1 . 1 1 1 . 3 . . . . 1 . . . . . . 1 . . . 1 . . 1 . . Feedback Events . | . . . . . . . . . . . . . . . . . . . . . . . . . . . . . . . Feedback Blocked . | . . . . . . . . . . . . . . . . . . . . . . . . . . . . . . . Robot Schematics Acquired 7 | . . . . . . . . . . . . 5 . . . . . . . . . . . . . . . 1 1 . Robots Built . | . . . . . . . . . . . . . . . . . . . . . . . . . . . . . . . Authchips . | . . . . . . . . . . . . . . . . . . . . . . . . . . . . . . . Time . | . . . . . . . . . . . . . . . . . . . . . . . . . . . . . . . Total Robot Build Rating . | . . . . . . . . . . . . . . . . . . . . . . . . . . . . . . . Part Schematics Acquired 19 | . . . 1 . . 1 . . . . . 11 . . . . . . . . 1 . . . . 1 . 2 2 . Parts Built 6 | . . . . . . . 2 . 1 . . . . 2 . . . . . . 1 . . . . . . . . . Authchips . | . . . . . . . . . . . . . . . . . . . . . . . . . . . . . . . Time 295 | . . . . . . . 84 . 36 . . . . 73 . . . . . . 102 . . . . . . . . . Total Part Build Rating 25 | . . . . . . . 8 . 3 . . . . 6 . . . . . . 8 . . . . . . . . . Parts Repaired 5 | . . . 2 . . . . . 1 . . . . . . . . . . . 1 . . . . 1 . . . . Time 186 | . . . 64 . . . . . 32 . . . . . . . . . . . 68 . . . . 22 . . . . Parts Recycled . | . . . . . . . . . . . . . . . . . . . . . . . . . . . . . . . Recycled Matter 14 | . . . . . . . . . . . . . . . . . . . . . . . . . . . 14 . . . Retrieved Matter 14 | . . . . . . . . . . . . . . . . . . . . . . . . . . . 14 . . . Retrieved Components . | . . . . . . . . . . . . . . . . . . . . . . . . . . . . . . . Parts Scanalyzed 3 | . . . 1 . . . . . . . . . . 1 . . . . . . 1 . . . . . . . . . Part Schematics Acquired 2 | . . . 1 . . . . . . . . . . . . . . . . . 1 . . . . . . . . . Parts Damaged . | . . . . . . . . . . . . . . . . . . . . . . . . . . . . . . . Bothacking | -11 -10 -10 -9 -9 -9 -9 -7 -7 -7 -7 -7 -7 -6 -6 -6 -5 -5 -5 -5 -5 -4 -4 -4 -4 -3 -3 -2 -2 -2 -1 ------------ Run | Scr Mat Min Mat Sto Gar Rec Fac Was Fac Low Low Dat Pro Fac Gar Fac Ext Cet Arc Hub Fac Was Fac Gar Res Tes Res Qua Sec Acc Used RIF Installer 5 | . . . . . 1 . . . . . . . . . 2 . . . . . . . . 2 . . . . . . Signal Jammer 1 | . . . . . . . . . . . . . . . . . . . . . . . . 1 . . . . . . Zone Cloak 1 | . . . . . . . . . . . . . . . 1 . . . . . . . . . . . . . . . Alert ID Control 1 | . . . . . . . . . . . . . . . . . . . . . . . . 1 . . . . . . Structural Interface 1 | . . . . . . . . . . . . . . . 1 . . . . . . . . . . . . . . . Robots Hacked 9 | . . . . . . . 1 6 . . . 1 . . . . . . . . . . . . . 1 . . . . Non-combat 1 | . . . . . . . 1 . . . . . . . . . . . . . . . . . . . . . . . Combat 8 | . . . . . . . . 6 . . . 1 . . . . . . . . . . . . . 1 . . . . Robot Hacks Applied 10 | . . . . . . . 1 7 . . . 1 . . . . . . . . . . . . . 1 . . . . parse_system 2 | . . . . . . . . . . . . 1 . . . . . . . . . . . . . 1 . . . . find_chute 1 | . . . . . . . 1 . . . . . . . . . . . . . . . . . . . . . . . ignore_targets 7 | . . . . . . . . 7 . . . . . . . . . . . . . . . . . . . . . . Relay Couplers Released 25 | . . . . . 5 . . . . . . . . . 11 . . . . 1 1 . . 7 . . . . . . Machine Destruction 25 | . . . . . 5 . . . . . . . . . 11 . . . . 1 1 . . 7 . . . . . . Attached 3 | . . . . . . . . 1 . . . . . . . . . . . . . . . . . . . . . 2 Fabnet Peak Effective % . | . . . . . . . . . . . . . . . . . . . . . . . . . . . . . . . Robots Rewired 36 | . . . . . . 10 . . . . . . 2 . 1 . 15 . . . . . . 8 . . . . . . Allies Hacked . | . . . . . . . . . . . . . . . . . . . . . . . . . . . . . . . Hacks Repelled . | . . . . . . . . . . . . . . . . . . . . . . . . . . . . . . . Allies | -11 -10 -10 -9 -9 -9 -9 -7 -7 -7 -7 -7 -7 -6 -6 -6 -5 -5 -5 -5 -5 -4 -4 -4 -4 -3 -3 -2 -2 -2 -1 -------- Run | Scr Mat Min Mat Sto Gar Rec Fac Was Fac Low Low Dat Pro Fac Gar Fac Ext Cet Arc Hub Fac Was Fac Gar Res Tes Res Qua Sec Acc Total Allies 52 | . . . . . 2 10 . 1 . . . . 2 . 3 . 23 . . . . . . 10 . 1 . . . . Largest Group 12 | . . . . . 2 8 8 1 . . . . 2 2 2 2 12 7 . . . . . 9 9 1 . . . . Highest-Rated Group 547 | . . . . . 56 135 132 31 . . . . 61 61 160 146 327 325 . . . . . 547 547 45 . . . . Highest-Rated Ally 159 | . . . . . 31 34 34 31 . . . . 32 32 99 73 159 150 . . . . . 119 119 45 . . . . Total Orders . | . . . . . . . . . . . . . . . . . . . . . . . . . . . . . . . Ally Attacks 452 | . . . . . 3 25 6 119 . . . . 2 9 27 4 116 47 . . . . . 32 62 . . . . . Total Damage 12534 | . . . . . 61 580 345 1826 . . . . 19 227 1260 181 3312 1082 . . . . . 1063 2578 . . . . . Kills 94 | . . . . . 1 10 2 3 . . . . 1 5 8 1 27 4 . . . . . 12 20 . . . . . Allies Corrupted 1 | . . . . . . . . 1 . . . . . . . . . . . . . . . . . . . . . . Allies Melted . | . . . . . . . . . . . . . . . . . . . . . . . . . . . . . . . Intel | -11 -10 -10 -9 -9 -9 -9 -7 -7 -7 -7 -7 -7 -6 -6 -6 -5 -5 -5 -5 -5 -4 -4 -4 -4 -3 -3 -2 -2 -2 -1 ------- Run | Scr Mat Min Mat Sto Gar Rec Fac Was Fac Low Low Dat Pro Fac Gar Fac Ext Cet Arc Hub Fac Was Fac Gar Res Tes Res Qua Sec Acc Robot Analysis Total 134 | . 2 . 1 . . . . . . . . 131 . . . . . . . . . . . . . . . . . . Derelict Logs Recovered 2 | . . 1 . . . . . . . . . . 1 . . . . . . . . . . . . . . . . . Drone Launches . | . . . . . . . . . . . . . . . . . . . . . . . . . . . . . . . Drone Recoveries . | . . . . . . . . . . . . . . . . . . . . . . . . . . . . . . . Exploration | -11 -10 -10 -9 -9 -9 -9 -7 -7 -7 -7 -7 -7 -6 -6 -6 -5 -5 -5 -5 -5 -4 -4 -4 -4 -3 -3 -2 -2 -2 -1 ------------- Run | Scr Mat Min Mat Sto Gar Rec Fac Was Fac Low Low Dat Pro Fac Gar Fac Ext Cet Arc Hub Fac Was Fac Gar Res Tes Res Qua Sec Acc Turns Passed 27985 | 84 1186 597 1813 1498 1641 758 1020 497 576 437 635 360 921 1079 2547 262 1218 631 162 446 990 621 49 2007 1320 916 921 1428 1021 344 Spaces Moved 10813 | 52 586 262 626 450 592 210 363 165 298 196 379 116 425 384 750 156 569 194 42 148 329 361 30 928 444 357 285 496 322 298 Core 263 | 22 . . . . . . . . . . . . . . . . . . . . . . . . . . . . . 241 Treads 10174 | 30 586 262 626 450 592 210 363 165 298 196 379 116 425 111 647 156 569 194 42 148 329 361 30 928 444 357 285 496 322 57 Legs . | . . . . . . . . . . . . . . . . . . . . . . . . . . . . . . . Wheels 376 | . . . . . . . . . . . . . . 273 103 . . . . . . . . . . . . . . . Hover . | . . . . . . . . . . . . . . . . . . . . . . . . . . . . . . . Flight . | . . . . . . . . . . . . . . . . . . . . . . . . . . . . . . . Fastest Speed 50 | 50 160 160 240 160 160 240 160 160 160 160 160 160 160 160 157 153 153 153 163 163 163 163 163 163 163 160 160 155 160 50 Average Speed 186 | 143 160 160 240 239 237 240 239 160 160 160 160 160 189 227 271 153 153 159 163 163 163 163 163 163 164 165 190 157 160 71 Slowest Speed 640 | 200 160 160 240 240 240 240 240 160 160 160 160 160 240 320 640 153 153 163 163 163 163 163 163 163 166 166 240 160 160 160 Overloaded Moves . | . . . . . . . . . . . . . . . . . . . . . . . . . . . . . . . Propulsion Burnouts . | . . . . . . . . . . . . . . . . . . . . . . . . . . . . . . . Robots Hopped . | . . . . . . . . . . . . . . . . . . . . . . . . . . . . . . . Cave-ins Triggered 2 | . . . . . 1 . . . . . . . . 1 . . . . . . . . . . . . . . . . Exploration Rate (%) 43 | 4 82 55 60 53 49 38 11 80 8 36 51 77 68 17 95 5 76 57 58 18 10 96 1 91 17 38 10 53 17 10 Regions Visited 30 Branch Regions 14 Pre-discovered Areas 31 | . 1 1 . . . . . . . . . 28 1 . . . . . . . . . . . . . . . . . Known Exits Taken 11 | . . . 1 1 . . . . 1 . . . . 1 . . . . . 1 . . 1 . 1 1 1 1 1 . Unknown Exits Taken 12 | 1 1 1 . . . 1 . . . 1 1 1 1 . . 1 1 1 1 . . . . . . . . . . . Scrap Searched 3 | . . . . . . . . . . . 2 . 1 . . . . . . . . . . . . . . . . . Spaces Dug 256 | . . . . 1 2 . 3 . . . . . . 9 . . . . . 180 5 . . . 27 . 19 . 10 . Terrain Destroyed 982 | . . . 14 6 2 . 4 . . . 1 32 59 103 78 . 20 6 . 202 138 5 . 6 133 9 67 42 54 1 Melee 3 | . . . . 1 2 . . . . . . . . . . . . . . . . . . . . . . . . . Projectile 338 | . . . . 5 . . 4 . . . 1 . . 23 3 . 20 6 . 41 41 5 . 5 66 9 52 11 45 1 AOE 609 | . . . 14 . . . . . . . . 32 59 80 75 . . . . 161 96 . . . 65 . . 27 . . Terrain Rammed . | . . . . . . . . . . . . . . . . . . . . . . . . . . . . . . . Walls Destroyed . | . . . . . . . . . . . . . . . . . . . . . . . . . . . . . . . Machines Disabled . | . . . . . . . . . . . . . . . . . . . . . . . . . . . . . . . Actions | -11 -10 -10 -9 -9 -9 -9 -7 -7 -7 -7 -7 -7 -6 -6 -6 -5 -5 -5 -5 -5 -4 -4 -4 -4 -3 -3 -2 -2 -2 -1 --------- Run | Scr Mat Min Mat Sto Gar Rec Fac Was Fac Low Low Dat Pro Fac Gar Fac Ext Cet Arc Hub Fac Was Fac Gar Res Tes Res Qua Sec Acc Total 16431 | 59 736 427 850 745 731 461 463 273 377 287 405 251 498 489 1093 180 877 410 115 294 644 382 30 1324 799 591 508 1062 648 422 Wait 3082 | . 73 146 89 175 48 110 36 7 48 73 20 97 15 40 181 8 173 99 50 112 217 6 1 222 142 116 75 447 146 110 Move 10781 | 51 585 261 625 450 590 209 363 164 297 195 378 115 424 382 748 155 568 193 41 147 329 360 29 926 443 356 284 495 321 297 Hop . | . . . . . . . . . . . . . . . . . . . . . . . . . . . . . . . Pick Up 189 | 2 14 3 18 6 5 1 13 4 7 . 1 1 2 8 19 6 8 7 . 1 5 2 . 9 11 8 7 11 9 1 Fast Attach 86 | 6 1 . 1 4 . . 1 3 2 1 . . 4 3 11 2 2 6 2 1 4 2 . 5 5 2 3 7 5 3 Attach 90 | . . . 5 1 3 . 6 . 2 . . 4 10 6 3 1 1 . . . 4 1 . 3 6 7 5 8 13 1 Detach 18 | . . . . . . . . 2 . . . 4 2 1 . . . . . . . . . . . 2 . 5 2 . Swap 215 | . 5 2 18 14 12 1 7 3 3 . 3 6 4 4 7 2 2 7 2 4 16 2 . 7 16 14 18 20 14 2 Drop 213 | . 6 4 30 17 6 2 3 13 6 . 2 2 . . 18 6 9 17 2 1 1 4 . 10 10 4 5 18 13 4 Fire 1352 | . 48 7 56 65 50 3 34 77 11 17 1 21 14 43 82 . 30 81 16 28 67 5 . 75 157 82 110 48 121 3 Melee 33 | . . . . 8 9 . . . . . . 1 13 . . . . . . . . . . . . . . 1 1 . Ram 2 | . . . . . . . . . . . . . 1 . . . . . . . . . . . . . . . . 1 Kick . | . . . . . . . . . . . . . . . . . . . . . . . . . . . . . . . Crush 47 | . 4 4 8 5 . 1 . . 1 1 . . 4 1 . . 2 . . . 1 . . . 9 . 1 2 3 . Escape Stasis 30 | . . . . . 8 . . . . . . . . 1 21 . . . . . . . . . . . . . . . Rewire 293 | . . . . . . 134 . . . . . . 5 . 3 . 82 . 2 . . . . 67 . . . . . . Trap . | . . . . . . . . . . . . . . . . . . . . . . . . . . . . . . . Miscellaneous . | . . . . . . . . . . . . . . . . . . . . . . . . . . . . . . . Route ------- -11/Scrapyard -10/Materials (discovered 4 exits: *Mat x2 / *Min x2) -10/Mines (discovered 2 exits: *Mat x2) -9/Materials (discovered 5 exits: [*Mat] / *Min x2 / *Sto x2) -9/Storage -9/Garrison (discovered 2 exits: *Rec x2) -9/Recycling -7/Factory (discovered 3 exits: *Fac / *Low x2) -7/Waste -7/Factory -7/Lower Caves -7/Lower Caves (discovered 2 exits: *Fac / *Dat) -7/Data Miner -6/Proximity Caves -6/Factory (discovered 2 exits: [*Low] / Gar) -6/Garrison (discovered 3 exits: *Fac x3) -5/Factory -5/Extension (discovered 2 exits: *Fac / *Cet) -5/Cetus (discovered 2 exits: *Fac / [*Arc]) -5/Archives -5/Hub_04(d) (discovered 2 exits: *Fac x2) -4/Factory -4/Waste -4/Factory -4/Garrison (discovered 2 exits: *Res x2) -3/Research (discovered 2 exits: *Tes x2) -3/Testing -2/Research -2/Quarantine -2/Section 7 -1/Access To Epsilon Eridani History --------- Turn | Location | Event 2 | -11/Scrapyard | Discovered new exit (range 16) 85 | -11/Scrapyard | Entered Materials 314 | -10/Materials | Build established: Mutant 335 | -10/Materials | Discovered new exit (range 16) 652 | -10/Materials | Core integrity fell below 50% 696 | -10/Materials | Discovered new exit (range 12) 1116 | -10/Materials | Discovered new exit (range 10) 1248 | -10/Materials | Discovered new exit (range 12) 1271 | -10/Materials | Entered Mines 1282 | -10/Mines | Core integrity fell below 20% 1332 | -10/Mines | Received a Rocket Launcher from a helpful Derelict 1416 | -10/Mines | Discovered new exit (range 10) 1526 | -10/Mines | Discovered new exit (range 13) 1595 | -10/Mines | Met a Derelict who couldn't figure out how to use a Trap Extractor 1818 | -10/Mines | Learned location of Zion (-6) 1868 | -10/Mines | Entered Materials 1868 | -9/Materials | Evolved 2 slots: Utility x1, Weapon x1 2159 | -9/Materials | Build established: Tank 2198 | -9/Materials | Discovered new exit (range 10) 2396 | -9/Materials | Discovered new exit (range 16) 2729 | -9/Materials | Discovered new exit (range 7) 3182 | -9/Materials | Discovered new exit (range 6) 3280 | -9/Materials | Build established: Scavenger-Tank 3349 | -9/Materials | Repaired Lgt. Armor Plating 3389 | -9/Materials | Repaired Imp. Heat Sink 3438 | -9/Materials | Discovered new exit (range 5) 3486 | -9/Materials | Identified exit to Mines 3486 | -9/Materials | Identified exit to Storage 3681 | -9/Materials | Entered Storage 3889 | -9/Storage | Found Prototype Launcher 3889 | -9/Storage | Identified Scatter Rocket Array 4057 | -9/Storage | Build established: Tank 4423 | -9/Storage | Garrison activated, responded to threat 4466 | -9/Storage | Build established: Scavenger-Tank 5075 | -9/Storage | Garrison activated, responded to threat 5175 | -9/Storage | Identified exit to Garrison 5179 | -9/Storage | Entered Garrison 5325 | -9/Garrison | Build established: Tank 5386 | -9/Garrison | Triggered checkpoint 5574 | -9/Garrison | Crushed by falling debris 5574 | -9/Garrison | Core integrity fell below 50% 5652 | -9/Garrison | Triggered checkpoint 5808 | -9/Garrison | Discovered new exit (range 13) 5876 | -9/Garrison | Triggered checkpoint 5935 | -9/Garrison | Installed Relay Interface Framework 5955 | -9/Garrison | Garrison Relay disabled 6110 | -9/Garrison | Triggered checkpoint 6158 | -9/Garrison | Destroyed 7 combat bots 6308 | -9/Garrison | Triggered checkpoint 6388 | -9/Garrison | Rescued a captive Derelict 6389 | -9/Garrison | Rescued a captive Derelict 6498 | -9/Garrison | Discovered new exit (range 11) 6820 | -9/Garrison | Entered Recycling 6895 | -9/Recycling | Spotter reported a threat 6906 | -9/Recycling | Spotter reported a threat 7033 | -9/Recycling | Spotter reported a threat 7095 | -9/Recycling | Spotter reported a threat 7097 | -9/Recycling | Spotter reported a threat 7101 | -9/Recycling | Spotter reported a threat 7145 | -9/Recycling | Spotter reported a threat 7290 | -9/Recycling | Spotter reported a threat 7316 | -9/Recycling | Spotter reported a threat 7316 | -9/Recycling | Spotter reported a threat 7326 | -9/Recycling | Discovered new exit (range 12) 7338 | -9/Recycling | Spotter reported a threat 7403 | -9/Recycling | Spotter reported a threat 7428 | -9/Recycling | Spotter reported a threat 7450 | -9/Recycling | Spotter reported a threat 7451 | -9/Recycling | Spotter reported a threat 7481 | -9/Recycling | Spotter reported a threat 7494 | -9/Recycling | Spotter reported a threat 7498 | -9/Recycling | Spotter reported a threat 7518 | -9/Recycling | Spotter reported a threat 7533 | -9/Recycling | Build established: Commander-Tank 7547 | -9/Recycling | Spotter reported a threat 7556 | -9/Recycling | Spotter reported a threat 7578 | -9/Recycling | Entered Factory 7578 | -7/Factory | Accompanied by 8 allies 7578 | -7/Factory | Evolved 4 slots: Propulsion x2, Utility x2 7859 | -7/Factory | Discovered new exit (range 7) 7909 | -7/Factory | Build established: Scavenger-Tank 7978 | -7/Factory | Search patrols dispatched 8169 | -7/Factory | Discovered new exit (range 7) 8293 | -7/Factory | Identified exit to Lower Caves 8378 | -7/Factory | Search patrols dispatched 8451 | -7/Factory | Fabricated Med. Treads (x2) 8598 | -7/Factory | Sucked down chute 8598 | -7/Factory | Entered Waste 8599 | -7/Waste | Met a frightened Derelict 8613 | -7/Waste | EMP discharged 8625 | -7/Waste | Spotted C-40 Crusher 8636 | -7/Waste | Spotted C-40 Crusher 8642 | -7/Waste | Spotted C-40 Crusher 8713 | -7/Waste | EMP discharged 8713 | -7/Waste | System corruption reached 10% 8713 | -7/Waste | Allies destroyed C-40 Crusher 8726 | -7/Waste | Spotted C-40 Crusher 8734 | -7/Waste | Allies destroyed C-40 Crusher 8756 | -7/Waste | Allies destroyed C-40 Crusher 8787 | -7/Waste | Spotted C-40 Crusher 8798 | -7/Waste | Spotted C-40 Crusher 8813 | -7/Waste | EMP discharged 8864 | -7/Waste | Destroyed C-40 Crusher 8893 | -7/Waste | Build established: Scavenger-Mutant 8913 | -7/Waste | EMP discharged 9013 | -7/Waste | EMP discharged 9013 | -7/Waste | System corruption reached 30% 9014 | -7/Waste | Destroyed C-40 Crusher 9079 | -7/Waste | Discovered new exit (range 10) 9095 | -7/Waste | Entered Factory 9303 | -7/Factory | Repaired Autogun 9584 | -7/Factory | Discovered exit to Lower Caves (range 14) 9618 | -7/Factory | Build established: Scavenger-Tank 9630 | -7/Factory | Fabricated Adv. Targeting Computer (x1) 9671 | -7/Factory | Entered Lower Caves 10026 | -7/Lower Caves | Attracted the attention of an 0b10 checkpoint 10089 | -7/Lower Caves | Discovered new exit (range 13) 10108 | -7/Lower Caves | Entered another Lower Caves area 10108 | -7/Lower Caves | Discovered new exit (range 11) 10702 | -7/Lower Caves | Discovered new exit (range 3) 10743 | -7/Lower Caves | Entered Data Miner 10745 | -7/Data Miner | Discovered new exit (range 6) 10776 | -7/Data Miner | Met Data Miner 10813 | -7/Data Miner | Learned location of Section 7 (-2) 10813 | -7/Data Miner | Acquired the access code to Warlord's prototype stash 10835 | -7/Data Miner | Received God Mode back door access code from Data Miner 10866 | -7/Data Miner | Interfaced with the Data Conduit 11103 | -7/Data Miner | Entered Proximity Caves 11261 | -6/Proximity Caves | Attracted the attention of an 0b10 outpost 11285 | -6/Proximity Caves | Destroyed 9 combat bots 11313 | -6/Proximity Caves | Build established: Scavenger-Mutant 11314 | -6/Proximity Caves | Lost 3 parts (1n1u1w) 11358 | -6/Proximity Caves | Core integrity fell below 50% 11378 | -6/Proximity Caves | Destroyed 8 combat bots 11388 | -6/Proximity Caves | Lost 6 parts (1p2n2u1w) 11626 | -6/Proximity Caves | Build established: Mutant 12003 | -6/Proximity Caves | Discovered new exit (range 9) 12024 | -6/Proximity Caves | Entered Factory 12024 | -6/Factory | Accompanied by 2 allies 12024 | -6/Factory | Evolved 2 slots: Utility x2 12025 | -6/Factory | Loaded intel: 241 machine locations 12557 | -6/Factory | Fabricated Lrn. Tractor Beam? 12954 | -6/Factory | Build established: Scavenger-Tank 13001 | -6/Factory | Crushed by falling debris 13077 | -6/Factory | Discovered new exit (range 14) 13101 | -6/Factory | Identified exit to Garrison 13103 | -6/Factory | Entered Garrison 13104 | -6/Garrison | Loaded intel: 32 machine locations 13194 | -6/Garrison | Triggered checkpoint 13231 | -6/Garrison | Garrison Relay disabled 13495 | -6/Garrison | Build established: Tank 13750 | -6/Garrison | Triggered checkpoint 13800 | -6/Garrison | Triggered checkpoint 13887 | -6/Garrison | Phase Generator disabled 13906 | -6/Garrison | Spotted Striker 13906 | -6/Garrison | Spotted Striker 13924 | -6/Garrison | Destroyed Striker 13947 | -6/Garrison | Destroyed Striker 13977 | -6/Garrison | Lost 3 parts (3n) 13997 | -6/Garrison | Build established: Scavenger-Tank 14161 | -6/Garrison | Rewired Striker 14278 | -6/Garrison | Triggered checkpoint 14390 | -6/Garrison | Garrison Relay disabled 14440 | -6/Garrison | Discovered new exit (range 7) 15010 | -6/Garrison | Discovered new exit (range 12) 15102 | -6/Garrison | Garrison Relay disabled 15120 | -6/Garrison | Triggered checkpoint 15168 | -6/Garrison | Found embedded Infiltrators 15187 | -6/Garrison | Build established: Tank 15310 | -6/Garrison | Triggered checkpoint 15454 | -6/Garrison | Triggered checkpoint 15480 | -6/Garrison | Discovered new exit (range 12) 15497 | -6/Garrison | Expanded RIF knowledge: Zone Cloak 15608 | -6/Garrison | Expanded RIF knowledge: Structural Interface 15650 | -6/Garrison | Entered Factory 15650 | -5/Factory | Accompanied by 2 allies 15650 | -5/Factory | Evolved 2 slots: Propulsion x2 15651 | -5/Factory | Loaded intel: 301 machine locations 15895 | -5/Factory | Discovered new exit (range 10) 15912 | -5/Factory | Entered Extension 15912 | -5/Extension | Accompanied by 2 allies 15913 | -5/Extension | Loaded intel: 32 machine locations 15976 | -5/Extension | Rescued a captive Derelict 16156 | -5/Extension | Rescued a captive Derelict 16157 | -5/Extension | Rescued a captive Derelict 16449 | -5/Extension | Rescued a captive Derelict 16450 | -5/Extension | Rescued a captive Derelict 16565 | -5/Extension | Rescued A7 16599 | -5/Extension | Rescued a captive Derelict 16600 | -5/Extension | Rescued a captive Derelict 16812 | -5/Extension | First assault squad dispatched 17104 | -5/Extension | Discovered new exit (range 10) 17106 | -5/Extension | Discovered new exit (range 6) 17130 | -5/Extension | Entered Cetus 17130 | -5/Cetus | Accompanied by 7 allies (A7) 17131 | -5/Cetus | Loaded intel: 24 machine locations 17135 | -5/Cetus | Acquired a Cetus Manufacturing Module code from A7 17151 | -5/Cetus | Spotted Cetus Guard 17151 | -5/Cetus | Spotted Cetus Guard 17153 | -5/Cetus | Spotted Cetus Guard 17156 | -5/Cetus | Spotted Cetus Guard 17171 | -5/Cetus | Allies destroyed Cetus Guard 17178 | -5/Cetus | Allies destroyed Cetus Guard 17181 | -5/Cetus | Destroyed Cetus Guard 17186 | -5/Cetus | Destroyed Cetus Guard 17323 | -5/Cetus | Started Cetus Manufacturing Module 17345 | -5/Cetus | Cetus Manufacturing Module disabled 17387 | -5/Cetus | Discovered new exit (range 15) 17434 | -5/Cetus | Spotted Cetus Guard 17434 | -5/Cetus | Spotted Cetus Guard 17437 | -5/Cetus | Spotted Cetus Guard 17444 | -5/Cetus | Spotted Cetus Guard 17449 | -5/Cetus | Destroyed Cetus Guard 17449 | -5/Cetus | Destroyed Cetus Guard 17460 | -5/Cetus | Allies destroyed Cetus Guard 17466 | -5/Cetus | Destroyed Cetus Guard 17483 | -5/Cetus | Discovered new exit (range 15) 17491 | -5/Cetus | Met Revision 17 17528 | -5/Cetus | Build established: Scavenger-Tank 17705 | -5/Cetus | Destroyed A7 17711 | -5/Cetus | Extracted ID and sensor layout for unrecognized location from A7's data core 17734 | -5/Cetus | Found Prototype Protection 17734 | -5/Cetus | Identified Med. Regenerative Plating 17761 | -5/Cetus | Entered Archives 17762 | -5/Archives | Loaded intel: 8 machine locations 17887 | -5/Archives | Met Zhirov 17893 | -5/Archives | Reinforcements dispatched to Archives 17899 | -5/Archives | Discovered new exit (range 16) 17923 | -5/Archives | Entered Hub_04(d) 17924 | -5/Hub_04(d) | Loaded intel: 95 machine locations 17929 | -5/Hub_04(d) | Discovered new exit (range 12) 17960 | -5/Hub_04(d) | Identified exit to Factory 18174 | -5/Hub_04(d) | Discovered exit to Factory (range 3) 18187 | -5/Hub_04(d) | Garrison activated, responded to threat 18334 | -5/Hub_04(d) | Identified exit to Garrison 18345 | -5/Hub_04(d) | Network Hub disabled 18347 | -5/Hub_04(d) | Spotted Lightning 18349 | -5/Hub_04(d) | Spotted Lightning 18351 | -5/Hub_04(d) | Spotted Lightning 18369 | -5/Hub_04(d) | Entered Factory 18369 | -4/Factory | Evolved 2 slots: Power x1, Utility x1 18370 | -4/Factory | Loaded intel: 257 machine locations 18619 | -4/Factory | First assault squad dispatched 18634 | -4/Factory | Fabricated Centrium Heavy Treads? 18937 | -4/Factory | Repaired Corrupted Centrium Heavy Treads 19146 | -4/Factory | Garrison activated, responded to threat 19359 | -4/Factory | Sucked down chute 19359 | -4/Factory | Entered Waste 19359 | -4/Waste | The area was eerily silent 19637 | -4/Waste | Discovered new exit (range 15) 19650 | -4/Waste | A Compactor rumbled back to life 19650 | -4/Waste | Spotted C-40 Crusher 19656 | -4/Waste | Build established: Scavenger-Skirmisher 19657 | -4/Waste | Destroyed C-40 Crusher 19978 | -4/Waste | Identified exit to Factory 19980 | -4/Waste | Entered Factory 19981 | -4/Factory | Loaded intel: 264 machine locations 20027 | -4/Factory | Identified exit to Garrison 20029 | -4/Factory | Entered Garrison 20030 | -4/Garrison | Loaded intel: 28 machine locations 20351 | -4/Garrison | Build established: Scavenger-Gunner 20402 | -4/Garrison | Triggered checkpoint 20533 | -4/Garrison | Found Relay Coupler [Proto] 20536 | -4/Garrison | Found Relay Coupler [Proto] 20539 | -4/Garrison | Found Relay Coupler [Proto] 20542 | -4/Garrison | Found Relay Coupler [Proto] 20694 | -4/Garrison | Expanded RIF knowledge: Alert ID Control 20833 | -4/Garrison | Build established: Bothacker-Gunner 20888 | -4/Garrison | Garrison Relay disabled 21043 | -4/Garrison | Rewired Executioner 21044 | -4/Garrison | Rewired Executioner 21110 | -4/Garrison | Discovered new exit (range 12) 21127 | -4/Garrison | Identified exit to Research 21144 | -4/Garrison | Triggered checkpoint 21268 | -4/Garrison | Triggered checkpoint 21373 | -4/Garrison | Triggered checkpoint 21417 | -4/Garrison | Found embedded Infiltrators 21494 | -4/Garrison | Garrison Relay disabled 21640 | -4/Garrison | Triggered checkpoint 21711 | -4/Garrison | Triggered checkpoint 21732 | -4/Garrison | Found Prototype Processor 21732 | -4/Garrison | Identified Exp. Targeting Computer 21766 | -4/Garrison | Expanded RIF knowledge: Signal Jamming 21794 | -4/Garrison | Discovered exit to Research (range 2) 22036 | -4/Garrison | Entered Research 22036 | -3/Research | Accompanied by 9 allies 22036 | -3/Research | Evolved 2 slots: Power x1, Utility x1 22037 | -3/Research | Loaded intel: 80 machine locations 22131 | -3/Research | Assembled infested ambush trap array 22286 | -3/Research | First assault squad dispatched 22490 | -3/Research | Garrison activated, responded to threat 22684 | -3/Research | Intercept squad dispatched 22723 | -3/Research | Spotted Tracker 22728 | -3/Research | Destroyed Tracker 22764 | -3/Research | Spotted Combat Programmer 22780 | -3/Research | Found Exp. Targeting Computer 22782 | -3/Research | Destroyed Combat Programmer 22940 | -3/Research | Identified exit to Testing 23026 | -3/Research | High security lockdown imminent 23054 | -3/Research | Destroyed 13 combat bots 23106 | -3/Research | High security lockdown engaged 23158 | -3/Research | Destroyed 13 combat bots 23318 | -3/Research | Destroyed 18 combat bots 23356 | -3/Research | Entered Testing 23357 | -3/Testing | Loaded intel: 80 machine locations 23387 | -3/Testing | Found Prototype Protection 23387 | -3/Testing | Identified Centrium Heavy Armor Plating 23425 | -3/Testing | Found Prototype Ballistic Gun 23426 | -3/Testing | Identified Hyp. Multirail 23606 | -3/Testing | First assault squad dispatched 23631 | -3/Testing | Found Exp. Signal Interpreter 24003 | -3/Testing | Repaired Adv. Weapon Cycler? 24007 | -3/Testing | Found System Mapper 24051 | -3/Testing | Intercept squad dispatched 24067 | -3/Testing | Spotted Tracker 24067 | -3/Testing | Spotted Tracker 24075 | -3/Testing | Spotted Combat Programmer 24076 | -3/Testing | Destroyed Tracker 24080 | -3/Testing | System corruption reached 10% 24083 | -3/Testing | Destroyed Tracker 24091 | -3/Testing | Destroyed Combat Programmer 24105 | -3/Testing | Spotted Combat Programmer 24125 | -3/Testing | Destroyed Combat Programmer 24171 | -3/Testing | Found Exp. Targeting Computer 24182 | -3/Testing | Lost 3 parts (2n1u) 24219 | -3/Testing | High security lockdown imminent 24266 | -3/Testing | Discovered new exit (range 4) 24271 | -3/Testing | Identified exit to Research 24272 | -3/Testing | Entered Research 24272 | -2/Research | Evolved 2 slots: Utility x2 24273 | -2/Research | Loaded intel: 141 machine locations 24517 | -2/Research | Garrison activated, responded to threat 24522 | -2/Research | First assault squad dispatched 24524 | -2/Research | Spotted B-90 Cyclops 24564 | -2/Research | Destroyed 7 combat bots 24588 | -2/Research | Destroyed B-90 Cyclops 24606 | -2/Research | Spotted B-90 Cyclops 24735 | -2/Research | Destroyed 8 combat bots 24907 | -2/Research | High security lockdown imminent 24987 | -2/Research | High security lockdown engaged 25096 | -2/Research | System corruption reached 10% 25159 | -2/Research | Destroyed 10 combat bots 25169 | -2/Research | Discovered new exit (range 12) 25192 | -2/Research | Identified exit to Quarantine 25193 | -2/Research | Entered Quarantine 25194 | -2/Quarantine | Loaded intel: 104 machine locations 25243 | -2/Quarantine | Found Imp. Powered Armor 25424 | -2/Quarantine | Found Alien Artifact 25466 | -2/Quarantine | Found Alien Artifact 25653 | -2/Quarantine | Found Alien Impact Weapon 25672 | -2/Quarantine | Identified Core Reset Matrix 25693 | -2/Quarantine | First assault squad dispatched 25882 | -2/Quarantine | Destroyed 8 combat bots 26262 | -2/Quarantine | Spotted Fortress 26266 | -2/Quarantine | Identified Core Stripper 26278 | -2/Quarantine | Destroyed Fortress 26368 | -2/Quarantine | Found Exp. Force Field 26374 | -2/Quarantine | Found Vortex Chain Reactor 26377 | -2/Quarantine | Found Vortex Chain Reactor 26386 | -2/Quarantine | Found Centrium Heavy Armor Plating 26408 | -2/Quarantine | Found Exp. EM Disruption Field 26513 | -2/Quarantine | Discovered new exit (range 5) 26518 | -2/Quarantine | Identified exit to Section 7 26621 | -2/Quarantine | Entered Section 7 26622 | -2/Section 7 | Loaded intel: 145 machine locations 26623 | -2/Section 7 | Spotted S7 Guard 26674 | -2/Section 7 | Scanned by Researcher 26675 | -2/Section 7 | Spotted S7 Guard 26727 | -2/Section 7 | Destroyed S7 Guard 26837 | -2/Section 7 | Found Alien Artifact 26871 | -2/Section 7 | First assault squad dispatched 26874 | -2/Section 7 | Found Alien Artifact 26962 | -2/Section 7 | Found Alien Artifact 27049 | -2/Section 7 | Found Alien Artifact 27069 | -2/Section 7 | Spotted S7 Guard 27078 | -2/Section 7 | Destroyed S7 Guard 27084 | -2/Section 7 | Found Prototype Protection 27084 | -2/Section 7 | Identified Hvy. Regenerative Plating 27108 | -2/Section 7 | Found Alien Artifact 27245 | -2/Section 7 | Discovered new exit (range 13) 27321 | -2/Section 7 | Identified Integrated Reactor 27321 | -2/Section 7 | Identified Integrated Mediator 27321 | -2/Section 7 | Identified Core Membrane 27321 | -2/Section 7 | Identified Core Physics Calibrator 27321 | -2/Section 7 | Identified Navigation Efficiency Matrix 27321 | -2/Section 7 | Installed Core Membrane, gained immunity to corruption 27322 | -2/Section 7 | Installed Integrated Mediator, increased core attachment efficiency. 27373 | -2/Section 7 | Installed Navigation Efficiency Matrix, process failed with unexpected side effects 27408 | -2/Section 7 | Lost 3 parts (2u1w) 27641 | -2/Section 7 | Identified exit to Access 27642 | -2/Section 7 | Entered Access 27642 | -1/Access | Evolved 2 slots: Power x1, Weapon x1 27643 | -1/Access | Loaded intel: 128 machine locations 27734 | -1/Access | Installed Integrated Reactor, increased core energy generation (+10) 27794 | -1/Access | Lost 8 parts (2p1n3u2w) 27896 | -1/Access | Spotted B-99 Colossus 27983 | -1/Access | Discovered new exit (range 6) 27985 | -1/Access | Identified exit to Surface 27986 | *** | Escaped! Last Messages --------------- 27898_ Dropped Core Stripper. 27899_ Acquired Biometal Heavy Treads. 27903_ Navigation matrix triggers involuntary quantum shift. 27946_ Connecting with Terminal... >>Trojan(Botnet) Trojan loaded successfully. Testing... Terminal linked with 0 systems. Awaiting botnet instructions. 27954_ Core Membrane filtered system corruption (1). 27961_ Navigation matrix triggers involuntary quantum shift. 27961_ Slug penetrates Wall. 27973_ ALERT: Security rotation in progress. 27976_ Navigation matrix triggers involuntary quantum shift. 27982_ Connecting with Terminal... >>Open(Door) Sealed Barrier opened. 27983_ The Access Shell folds into the floor. 27983_ EXIT=FOUND 27985_ EXIT=IDENTIFIED: SURFACE Map ----- +----------------------------------------------------+ | ???????????# ## """" #?? ???? #????????? | | ???????????# ## """" ## ?? #????????? | | ???????????# ## """" ## # #????????? | | ############ ## """" ## # #????????? | | ## """" ## # #????????? | | ## "" ## # #????????? | | ?########### ## "" ## !! # #????????? | | ???????????# ## ? ## !! #? #????????? | | ???????????# ## ?? ############? ?????????? | | ???????????# ###??########??????????????????????? | | ??????"????# #######################???????????"" | | ????""""???+ ???????????T" | | ???"""""???# ???????????"" | | ????"""""??# ### ""#?????????????????? | | ????""""???# #?# ""#?????????????????? | | ?????"?????# #?# ""#?????????????????? | | ???????????# #?# T#?????????????????? | | ???????????# #?# ""#?????????????????? | | ???????????# #?# ""#?????????????????? | | ???????????# ### ""##????????????????? | | ???????????# ## #????????????????? | | ???????????# ?## ##????????????????? | | ???????????# ??# #?????????????????? | | ???????????# ??# #?????????????????" | | ???????????# ??# #?????????????????" | | ??????????? ??# @" #?????????????????" | | ????????????? ??# "" #?????????????????? | | ??????????????? ??# #?????????????????" | | ????????????????????# #?????????????????" | | ????????????????????# #?????????????????" | | ????????????????????#""""""""""#?????????????????? | | ?????????????????????""""""""""??????????????????? | | ?????????????????????""""""""""??????????????????? | | ?????????????????????""""""""""??????????????????? | | ?????????????????????????????????????????????????? | | ?????????????????????????????????????????????????? | | ?????????????????????????????????????????????????? | | ??????????"??????????????????????????""??????????? | | ??????????"""????????????????????????""??????????? | | ??????????G????????????????????????""""""????????? | | ??????????"""??????????????????????""""""????????? | | ??????????"??????????????????????????""??????????? | | ?????????????????????????????????????""??????????? | | ?????????????????????????????????????????????????? | | ?????????????????????????????????????????????????? | | ?????????????????????""""????????????????????????? | | ?????????????????????""R"????????????????????????? | | ?????????????"???????""?"????????????????????????? | | ???????????""""??????????????????????????????????? | | ??????????"""""??????????????????????????????????? | +----------------------------------------------------+ Best States ------------- Heat Dissipation 101 Energy Generation 89 Energy Capacity 1450 Matter Stores 300 Matter Capacity 300 Sight Range 16 Robot Scan Range 18 Terrain Scan Density 10 Armor Coverage 1650 Resistance: EM 75 Weapon Cycling 25 Evasion (%) 50 Targeting Accuracy 24 Target Analysis 8 Recoil Reduction 6 Offensive Hacking 30 Relay Coupler Types 1 Relay Coupler Value 25 Item Schematics ----------------- Lrn. Tractor Beam | -9/Materials | Scanalyzed Adv. Targeting Computer | -9/Recycling | Hacked Combat Drone Bay | -7/Data Miner | Free Lgt. Regenerative Plating | -7/Data Miner | Free Cld. Cesium-ion Thruster | -7/Data Miner | Free Gravity Neutralizer | -7/Data Miner | Free Imp. Heavy Laser | -7/Data Miner | Free Gyrokinetic Inverter | -7/Data Miner | Free Point Defense System | -7/Data Miner | Free Hvy. Phase Cannon | -7/Data Miner | Free Lgt. Angular Momentum Engine | -7/Data Miner | Free Nuclear Pulse Array | -7/Data Miner | Free Lgt. Antimatter Reactor | -7/Data Miner | Free Centrium Heavy Treads | -4/Factory | Scanalyzed Exp. Force Field | -3/Testing | Hacked Hvy. Hardcell Cannon | -2/Quarantine | Archive Cld. Antigrav System | -2/Quarantine | Archive Hvy. Neutron Cannon | -2/Section 7 | Archive Vortex Chain Reactor | -2/Section 7 | Archive Robot Schematics ------------------ Y-54 Guardian | -7/Data Miner | Free S-27 Virus | -7/Data Miner | Free L-41 Fighter | -7/Data Miner | Free G-47 Trooper | -7/Data Miner | Free R-10 Processor | -7/Data Miner | Free E-15 Imp | -2/Quarantine | Archive A-27 Freighter | -2/Section 7 | Archive Fabricated ------------ Med. Treads | x2 | -7/Factory | Preloaded Adv. Targeting Computer | x1 | -7/Factory Lrn. Tractor Beam | x2 | -6/Factory Centrium Heavy Treads | x1 | -4/Factory Alien Tech Used ----------------- Core Stripper Core Membrane Integrated Mediator Navigation Efficiency Matrix Integrated Reactor Achievements -------------- None Challenges ------------ None Game ------ Seed DeuteriumCoreSystem Manual? 0 Play Time 03:07:00 Cumulative 1557.2 hours Start 2022.08.03 @ 17:04:20 End 2022.08.04 @ 16:27:03 Sessions 3 Manual Loads 0 Difficulty Rogue Special Mode None Game No. 547 Rogue 547 Adventurer 0 Explorer 0 Win Type 0 Total 112 Types 25/12/45/6/1/2/19/1/1 Lore% 97 Gallery% 97 Achievement% 86 Wizard Run 0 Options --------- ASCII 0 Keyboard 0 Movement Numpad Keybinds 0 Fullscreen 1 Font 18/SmallcapsGlow Map View 76x50 Tactical HUD 1 Map Filters NONE Filters NONE Steam 1 RUN: 925f8865-1d66-4232-a90f-7cfddbff0078